{"text_format":"1","workbook":"xlsx","n_sheets":7,"sheets":["Renovación equipos","Tabla intensidades de ayuda","EVALUACION","(1) Subsectores prioritarios","(2) Impacto ambiental","(3) Replicabilidad","(4) Ahorro energético"],"not_rendered":{"charts":0,"images":12,"macros":1,"external_links":0,"defined_names":3,"comments":1,"pivot_tables":0},"unopened":[],"bounds":{"document_bytes":16777216,"sheet_cells":100000,"rows_first":2000,"rows_last":500,"rows_between":2000,"halvings":0,"cell_chars":16384,"cell_head_chars":4096},"cells_cut":0,"cells_raw":0,"read":"whole","date_system":"1900"}

{"sheet":"Renovación equipos","index":0,"n_rows":525,"n_cols":16,"rows_kept":525,"cut":false,"hidden":false,"merged":[[5,0,5,12],[4,0,4,12],[201,1,201,6],[201,7,201,9],[201,10,201,11],[202,1,202,6],[202,7,202,9],[202,10,202,11],[208,1,208,6],[208,7,208,9],[208,10,208,11],[204,1,204,6],[204,7,204,8],[204,10,204,11],[205,7,205,8],[205,9,205,10],[206,1,206,6],[206,7,206,8],[206,10,206,11],[207,1,207,6],[207,7,207,9],[207,10,207,11],[196,1,196,6],[196,7,196,9],[196,10,196,11],[198,1,198,6],[198,7,198,8],[198,10,198,11],[199,7,199,8],[199,9,199,10],[200,1,200,6],[200,7,200,8],[200,10,200,11],[192,1,192,6],[192,7,192,8],[192,10,192,11],[193,7,193,8],[193,9,193,10],[194,1,194,6],[194,7,194,8],[194,10,194,11],[195,1,195,6],[195,7,195,9],[195,10,195,11],[187,7,187,8],[187,9,187,10],[188,1,188,6],[188,7,188,8],[188,10,188,11],[189,1,189,6],[189,7,189,9],[189,10,189,11],[190,1,190,6],[190,7,190,9],[190,10,190,11],[183,1,183,6],[183,7,183,9],[183,10,183,11],[184,1,184,6],[184,7,184,9],[184,10,184,11],[186,1,186,6],[186,7,186,8],[186,10,186,11],[176,10,176,11],[177,1,177,6],[177,7,177,9],[177,10,177,11],[175,9,175,10],[174,1,174,6],[174,7,174,8],[175,7,175,8],[182,1,182,6],[182,7,182,8],[182,10,182,11],[159,7,159,9],[159,10,159,11],[160,1,160,6],[160,7,160,9],[160,10,160,11],[162,10,162,11],[164,10,164,11],[165,7,165,9],[165,10,165,11],[163,9,163,10],[165,1,165,6],[164,1,164,6],[162,7,162,8],[163,7,163,8],[164,7,164,8],[241,1,241,6],[241,7,241,8],[241,9,241,10],[242,1,242,6],[242,7,242,8],[242,9,242,10],[243,1,243,6],[243,7,243,8],[243,9,243,10],[250,7,250,8],[250,9,250,10],[271,4,271,7],[244,1,244,6],[244,7,244,8],[244,9,244,10],[245,1,245,6],[245,7,245,8],[245,9,245,10],[246,1,246,6],[246,7,246,8],[246,9,246,10],[247,7,247,8],[247,9,247,10],[248,5,248,6],[248,7,248,8],[248,9,248,10],[234,1,234,6],[234,7,234,8],[234,9,234,10],[239,7,239,8],[239,9,239,10],[240,1,240,6],[240,7,240,8],[240,9,240,10],[235,1,235,6],[235,7,235,8],[235,9,235,10],[236,1,236,6],[236,7,236,8],[236,9,236,10],[237,1,237,6],[237,7,237,8],[237,9,237,10],[238,1,238,6],[238,7,238,8],[238,9,238,10],[239,1,239,6],[231,1,231,6],[231,7,231,8],[231,9,231,10],[232,1,232,6],[232,7,232,8],[232,9,232,10],[233,1,233,6],[233,7,233,8],[233,9,233,10],[228,1,228,6],[228,7,228,8],[228,9,228,10],[229,1,229,6],[229,7,229,8],[229,9,229,10],[230,1,230,6],[230,7,230,8],[230,9,230,10],[224,7,224,8],[224,9,224,10],[225,1,225,6],[225,7,225,8],[225,9,225,10],[226,1,226,6],[226,7,226,8],[226,9,226,10],[227,1,227,6],[227,7,227,8],[227,9,227,10],[220,7,220,8],[220,9,220,10],[221,1,221,6],[221,7,221,8],[221,9,221,10],[222,1,222,6],[222,7,222,8],[222,9,222,10],[223,1,223,6],[223,7,223,8],[223,9,223,10],[171,7,171,9],[171,10,171,11],[168,1,168,6],[168,7,168,8],[172,10,172,11],[218,1,218,6],[218,7,218,8],[218,9,218,10],[219,1,219,6],[219,7,219,8],[219,9,219,10],[172,1,172,6],[172,7,172,9],[178,1,178,6],[178,7,178,9],[178,10,178,11],[180,1,180,6],[180,7,180,8],[180,10,180,11],[181,7,181,8],[181,9,181,10],[174,10,174,11],[176,1,176,6],[176,7,176,8],[151,7,151,8],[166,10,166,11],[166,1,166,6],[166,7,166,9],[168,10,168,11],[169,7,169,8],[169,9,169,10],[170,1,170,6],[170,7,170,8],[170,10,170,11],[152,10,152,11],[153,10,153,11],[154,10,154,11],[153,7,153,9],[154,7,154,9],[156,1,156,6],[156,7,156,8],[156,10,156,11],[157,7,157,8],[157,9,157,10],[158,1,158,6],[158,7,158,8],[158,10,158,11],[159,1,159,6],[92,6,92,9],[98,2,98,5],[98,6,98,9],[99,2,99,5],[99,6,99,9],[93,2,93,5],[93,6,93,9],[94,2,94,5],[94,6,94,9],[95,2,95,5],[95,6,95,9],[96,2,96,5],[29,3,29,5],[29,6,29,8],[27,1,27,11],[29,9,29,10],[30,1,30,2],[30,3,30,4],[30,9,30,10],[31,1,31,2],[31,3,31,4],[31,9,31,10],[23,5,23,11],[213,1,213,11],[215,5,215,6],[217,1,217,6],[217,7,217,8],[217,9,217,10],[32,1,32,2],[32,3,32,4],[32,9,32,10],[30,6,30,7],[31,6,31,7],[32,6,32,7],[83,2,83,5],[83,6,83,9],[84,2,84,5],[84,6,84,9],[85,2,85,5],[85,6,85,9],[86,2,86,5],[86,6,86,9],[107,2,107,5],[107,6,107,9],[108,2,108,5],[108,6,108,9],[370,10,370,11],[376,10,376,11],[364,10,364,11],[371,4,371,9],[371,10,371,11],[372,4,372,9],[283,1,283,4],[289,1,289,4],[290,1,290,4],[284,1,284,4],[285,1,285,4],[286,1,286,4],[287,1,287,4],[288,1,288,4],[358,10,358,11],[359,10,359,11],[366,10,366,11],[367,10,367,11],[356,4,356,9],[368,10,368,11],[369,10,369,11],[357,4,357,9],[358,4,358,9],[355,10,355,11],[434,10,434,11],[435,4,435,9],[435,10,435,11],[436,4,436,9],[436,10,436,11],[415,10,415,11],[416,4,416,9],[416,10,416,11],[401,4,401,9],[433,10,433,11],[434,4,434,9],[411,10,411,11],[407,4,407,9],[408,4,408,9],[409,4,409,9],[410,4,410,9],[432,10,432,11],[417,10,417,11],[418,10,418,11],[417,4,417,9],[418,4,418,9],[411,4,411,9],[390,10,390,11],[103,2,103,5],[72,2,72,5],[76,2,76,5],[102,2,102,5],[92,2,92,5],[100,2,100,5],[379,4,379,9],[380,4,380,9],[360,1,364,3],[360,4,360,9],[73,6,73,9],[74,2,74,5],[74,6,74,9],[75,2,75,5],[75,6,75,9],[76,6,76,9],[77,2,77,5],[386,1,386,11],[79,2,79,5],[79,6,79,9],[80,2,80,5],[80,6,80,9],[104,2,104,5],[356,10,356,11],[337,10,337,11],[90,6,90,9],[91,2,91,5],[91,6,91,9],[387,10,387,11],[388,10,388,11],[389,10,389,11],[104,6,104,9],[105,2,105,5],[105,6,105,9],[106,2,106,5],[106,6,106,9],[96,6,96,9],[97,2,97,5],[97,6,97,9],[102,6,102,9],[90,2,90,5],[349,10,349,11],[351,10,351,11],[382,4,382,9],[382,10,382,11],[357,10,357,11],[348,10,348,11],[396,10,396,11],[407,10,407,11],[408,10,408,11],[413,4,413,9],[413,10,413,11],[414,4,414,9],[414,10,414,11],[415,4,415,9],[399,10,399,11],[397,10,397,11],[398,10,398,11],[73,2,73,5],[50,3,50,4],[77,6,77,9],[78,2,78,5],[78,6,78,9],[391,4,391,9],[396,4,396,9],[394,4,394,9],[376,1,385,3],[88,6,88,9],[89,2,89,5],[87,2,87,5],[87,6,87,9],[88,2,88,5],[89,6,89,9],[247,1,247,6],[279,1,279,4],[280,1,280,4],[281,1,281,4],[282,1,282,4],[250,1,250,2],[152,7,152,8],[152,1,152,6],[100,6,100,9],[345,1,354,3],[346,4,346,9],[2,0,2,12],[3,0,3,12],[321,4,321,9],[323,10,323,11],[324,10,324,11],[325,10,325,11],[326,10,326,11],[321,10,321,11],[322,1,322,11],[275,1,275,4],[276,1,276,4],[277,1,277,4],[278,1,278,4],[312,1,312,4],[308,1,308,4],[309,1,309,4],[7,4,7,11],[9,4,9,11],[13,4,13,11],[15,4,15,11],[337,4,337,9],[72,6,72,9],[345,10,345,11],[342,10,342,11],[343,4,343,9],[338,4,338,9],[345,4,345,9],[372,10,372,11],[365,1,365,11],[370,4,370,9],[343,10,343,11],[350,4,350,9],[350,10,350,11],[351,4,351,9],[366,1,375,3],[360,10,360,11],[361,4,361,9],[334,1,343,3],[342,4,342,9],[338,10,338,11],[347,4,347,9],[348,4,348,9],[349,4,349,9],[346,10,346,11],[347,10,347,11],[344,1,344,11],[33,2,33,5],[392,4,392,9],[392,10,392,11],[50,9,50,10],[51,1,51,2],[51,3,51,4],[51,6,51,7],[51,9,51,10],[46,1,46,11],[48,3,48,5],[48,6,48,8],[48,9,48,10],[49,1,49,2],[49,3,49,4],[49,6,49,7],[49,9,49,10],[50,6,50,7],[50,1,50,2],[81,2,81,5],[81,6,81,9],[82,2,82,5],[82,6,82,9],[135,2,135,5],[135,6,135,9],[393,10,393,11],[394,10,394,11],[395,4,395,9],[395,10,395,11],[355,4,355,9],[359,4,359,9],[366,4,366,9],[367,4,367,9],[362,10,362,11],[363,4,363,9],[363,10,363,11],[364,4,364,9],[379,10,379,11],[380,10,380,11],[391,10,391,11],[383,4,383,9],[383,10,383,11],[384,4,384,9],[384,10,384,11],[385,4,385,9],[387,4,387,9],[388,4,388,9],[389,4,389,9],[390,4,390,9],[15,1,15,3],[17,1,17,3],[19,1,19,3],[21,1,21,2],[21,4,21,7],[7,1,7,3],[8,0,8,9],[9,1,9,3],[13,1,13,3],[11,4,11,5],[19,4,19,11],[21,8,21,11],[17,4,17,11],[491,3,491,11],[317,4,317,7],[431,10,431,11],[427,1,427,11],[428,4,428,9],[429,4,429,9],[430,4,430,9],[431,4,431,9],[432,4,432,9],[319,1,319,10],[321,1,321,3],[355,1,359,3],[323,4,323,9],[324,4,324,9],[325,4,325,9],[361,10,361,11],[362,4,362,9],[481,10,481,11],[323,1,332,3],[339,4,339,9],[339,10,339,11],[340,4,340,9],[385,10,385,11],[393,4,393,9],[112,2,112,5],[112,6,112,9],[118,2,118,5],[118,6,118,9],[101,6,101,9],[119,6,119,9],[120,2,120,5],[120,6,120,9],[144,6,144,7],[111,2,111,5],[111,6,111,9],[103,6,103,9],[109,2,109,5],[109,6,109,9],[110,2,110,5],[110,6,110,9],[101,2,101,5],[326,4,326,9],[327,4,327,9],[334,4,334,9],[113,2,113,5],[113,6,113,9],[114,2,114,5],[114,6,114,9],[115,2,115,5],[115,6,115,9],[116,2,116,5],[116,6,116,9],[117,2,117,5],[117,6,117,9],[126,2,126,5],[126,6,126,9],[127,2,127,3],[127,4,127,5],[127,6,127,7],[121,6,121,9],[122,2,122,5],[122,6,122,9],[127,8,127,9],[119,2,119,5],[121,2,121,5],[305,1,305,4],[306,1,306,4],[307,1,307,4],[299,1,299,4],[300,1,300,4],[301,1,301,4],[302,1,302,4],[303,1,303,4],[150,1,150,6],[153,1,153,6],[154,1,154,6],[162,1,162,6],[291,1,291,4],[292,1,292,4],[293,1,293,4],[304,1,304,4],[294,1,294,4],[295,1,295,4],[296,1,296,4],[297,1,297,4],[298,1,298,4],[171,1,171,6],[220,1,220,6],[224,1,224,6],[150,7,150,8],[136,2,136,3],[136,4,136,5],[136,6,136,7],[136,1,138,1],[140,4,140,5],[140,6,140,7],[136,8,136,9],[148,1,148,11],[150,10,150,11],[127,1,129,1],[131,4,131,5],[131,6,131,7],[310,1,310,4],[311,1,311,4],[151,9,151,10],[340,10,340,11],[341,4,341,9],[341,10,341,11],[335,4,335,9],[336,4,336,9],[210,1,210,4],[327,10,327,11],[334,10,334,11],[335,10,335,11],[336,10,336,11],[333,1,333,11],[328,4,328,9],[328,10,328,11],[329,4,329,9],[329,10,329,11],[330,4,330,9],[330,10,330,11],[331,4,331,9],[331,10,331,11],[332,4,332,9],[332,10,332,11],[352,4,352,9],[352,10,352,11],[376,4,376,9],[377,4,377,9],[378,4,378,9],[381,4,381,9],[381,10,381,11],[373,4,373,9],[373,10,373,11],[374,4,374,9],[374,10,374,11],[375,4,375,9],[375,10,375,11],[368,4,368,9],[369,4,369,9],[377,10,377,11],[378,10,378,11],[353,4,353,9],[353,10,353,11],[354,4,354,9],[354,10,354,11],[407,1,416,3],[402,4,402,9],[402,10,402,11],[403,4,403,9],[403,10,403,11],[404,4,404,9],[404,10,404,11],[405,4,405,9],[405,10,405,11],[406,4,406,9],[406,10,406,11],[397,1,406,3],[409,10,409,11],[410,10,410,11],[412,4,412,9],[412,10,412,11],[400,10,400,11],[397,4,397,9],[398,4,398,9],[399,4,399,9],[400,4,400,9],[387,1,396,3],[401,10,401,11],[428,1,437,3],[422,4,422,9],[422,10,422,11],[423,4,423,9],[423,10,423,11],[424,4,424,9],[424,10,424,11],[425,4,425,9],[425,10,425,11],[426,4,426,9],[426,10,426,11],[417,1,426,3],[419,10,419,11],[420,10,420,11],[421,10,421,11],[419,4,419,9],[420,4,420,9],[421,4,421,9],[428,10,428,11],[429,10,429,11],[430,10,430,11],[433,4,433,9],[449,1,458,3],[443,4,443,9],[443,10,443,11],[444,4,444,9],[444,10,444,11],[445,4,445,9],[445,10,445,11],[446,4,446,9],[446,10,446,11],[447,4,447,9],[447,10,447,11],[438,1,447,3],[438,10,438,11],[439,10,439,11],[440,10,440,11],[441,10,441,11],[438,4,438,9],[439,4,439,9],[440,4,440,9],[441,4,441,9],[448,1,448,11],[449,10,449,11],[450,10,450,11],[451,10,451,11],[455,10,455,11],[462,4,462,9],[463,10,463,11],[437,4,437,9],[437,10,437,11],[456,4,456,9],[456,10,456,11],[457,4,457,9],[457,10,457,11],[458,4,458,9],[458,10,458,11],[449,4,449,9],[450,4,450,9],[451,4,451,9],[442,10,442,11],[442,4,442,9],[452,4,452,9],[453,4,453,9],[454,10,454,11],[455,4,455,9],[453,10,453,11],[452,10,452,11],[459,10,459,11],[460,10,460,11],[462,10,462,11],[463,4,463,9],[459,4,459,9],[460,4,460,9],[461,4,461,9],[472,4,472,9],[489,4,489,9],[489,10,489,11],[483,10,483,11],[484,10,484,11],[480,4,480,9],[481,4,481,9],[482,4,482,9],[483,4,483,9],[484,4,484,9],[482,10,482,11],[479,1,479,11],[459,1,468,3],[454,4,454,9],[480,1,489,3],[474,4,474,9],[474,10,474,11],[475,4,475,9],[475,10,475,11],[476,4,476,9],[476,10,476,11],[477,4,477,9],[477,10,477,11],[478,4,478,9],[478,10,478,11],[469,1,478,3],[469,10,469,11],[470,10,470,11],[471,10,471,11],[472,10,472,11],[473,10,473,11],[473,4,473,9],[469,4,469,9],[470,4,470,9],[471,4,471,9],[480,10,480,11],[461,10,461,11],[25,4,25,11],[501,1,501,10],[526,1,537,11],[503,1,514,11],[520,4,520,11],[0,0,1,12],[485,4,485,9],[485,10,485,11],[486,4,486,9],[486,10,486,11],[487,4,487,9],[487,10,487,11],[488,4,488,9],[488,10,488,11],[464,4,464,9],[464,10,464,11],[465,4,465,9],[465,10,465,11],[466,4,466,9],[466,10,466,11],[467,4,467,9],[467,10,467,11],[468,4,468,9],[468,10,468,11]]}
[]
[]
["CONVOCATORIA DE SUBVENCIONES DESTINADAS AL FOMENTO DE LA EFICIENCIA ENERGÉTICA Y EL USO DE ENERGÍAS RENOVABLES "]
["POR PARTE DE LAS EMPRESAS EN EL ÁMBITO DEL PROGRAMA OPERATIVO FEDER 2014/2020 PARA LA REGIÓN DE MURCIA"]
[2021]
["RENOVACIÓN DE EQUIPOS E INSTALACIONES"]
[]
[null,"Denominación del proyecto de inversión:"]
[]
[null,"Empresa solicitante de la subvención:"]
[null,null,null,null,null,null,null,null,null,0]
[null,null,null,"NIF:",null,null,null,"Tipo de empresa:",null,"Grande","Mediana","Pequeña "]
[]
[null,"Dirección de la empresa:"]
[]
[null,"Actividad principal de la empresa:"]
[]
[null,"Actividades secundarias:"]
[]
[null,"Dirección de ejecución de la inversión:"]
[]
[null,"Fecha prevista ejecución: ",null,null,"       Nombre y apellidos del representante legal:"]
[]
[null,null,null,"CNAE 2009 (Pulsar botón y seleccionar):",null,"Seleccionar Actividad"]
[]
[null,null,null,"Sector:"]
[]
[null,"Consumo energético total anual del establecmiento y emisiones asociadas:"]
[null,"(Emplear los factores de conversión del Anexo II de la Orden de convocatoria; indicar '0' para valor cero)"]
[null,null,null,"Consumo de energía primaria",null,null,"Consumo de energía final",null,null,"Emisiones"]
[null,"Combustibles",null,null,null,"tep/año",null,null,"tep/año",null,null,"teqCO2/año"]
[null,"Electricidad",null,null,null,"tep/año",null,null,"tep/año",null,null,"teqCO2/año"]
[null,"Total",null,{"$f":"D31+D32","v":0},null,"tep/año",{"$f":"G31+G32","v":0},null,"tep/año",{"$f":"J31+J32","v":0},null,"teqCO2/año"]
[]
[null,"Clasificación del proyecto de inversión por tecnologías:"]
[null,"(Marcar una o varias opciones en función del proyecto"]
[null,"de inversión)"]
[]
[]
[]
[]
[]
[]
[]
[]
[]
[null,"Previsión de ahorro energético y reducción de emisiones con la renovación de equipos e instalaciones:"]
[null,"(Emplear los factores de conversión del Anexo II de la Orden de convocatoria)"]
[null,null,null,"Ahorro de energía primaria",null,null,"Ahorro de energía final",null,null,"Reducción de emisiones"]
[null,"Combustibles",null,null,null,"tep/año",null,null,"tep/año",null,null,"teqCO2/año"]
[null,"Electricidad",null,null,null,"tep/año",null,null,"tep/año",null,null,"teqCO2/año"]
[null,"Total",null,{"$f":"D50+D51","v":0},null,"tep/año",{"$f":"G50+G51","v":0},null,"tep/año",{"$f":"J50+J51","v":0},null,"teqCO2/año"]
[null,null,null,null,3]
[null,"Reducción consumo de energía primaria:",null,null,{"$f":"IF(D33<>0,D52/D33,0)","v":0},null,{"$f":"IF(E54>0.15,'(4) Ahorro energético'!A4,IF(E54>0.1,'(4) Ahorro energético'!A3,IF(E54>0.05,'(4) Ahorro energético'!A2,'(4) Ahorro energético'!A5)))","v":"<= 5%"}]
[null,"Reducción emisiones:",null,null,{"$f":"IF(J33<>0,J52/J33,0)","v":0},null,{"$f":"IF(E55>0.15,'(2) Impacto ambiental'!A4,IF(E55>0.1,'(2) Impacto ambiental'!A3,IF(E55>0.05,'(2) Impacto ambiental'!A2,'(2) Impacto ambiental'!A5)))","v":"<= 5%"}]
[]
[]
[]
[]
[]
[]
[]
[]
[]
[]
[]
[]
[]
[]
[]
[null,"Descripción de las medidas y actuaciones propuestas de ahorro y eficiencia energética y alcance técnico y cuantitativo de las mismas"]
[]
[null,null,"Medida",null,null,null,"Descripción",null,null,null,"¿Está contenida en auditoría?","Referencia a la página del informe donde aparece"]
[]
[]
[]
[]
[]
[]
[]
[]
[]
[]
[]
[]
[]
[]
[]
[]
[]
[]
[]
[]
[]
[]
[]
[]
[]
[]
[]
[]
[]
[]
[]
[]
[]
[]
[]
[]
[]
[]
[]
[]
[]
[]
[]
[]
[]
[]
[]
[]
[]
[]
[]
[null,"Balance energético global del establecimiento (cumplimentar obligatoriamente los datos solictados en tep/año, si el valor es cero indicarlo):"]
[]
[null,null,"Situación inicial",null,null,null,"Situación final"]
[null,"Energía Primaria","Térmica",null,"Eléctrica",null,"Térmica",null,"Eléctrica"]
[null,null,"MWht/año","tep/año","MWh/año","tep/año","MWht/año","tep/año","MWh/año","tep/año"]
[]
[]
[null,null,"Ahorro energía primaria:",null,"Térmica",null,"Eléctrica",null,null,"Total"]
[null,null,null,null,"MWht/año","tep/año","MWh/año","tep/año",null,"tep/año","%"]
[null,null,null,null,{"$f":"C130-G130","v":0},{"$f":"D130-H130","v":0},{"$f":"E130-I130","v":0},{"$f":"F130-J130","v":0},null,{"$f":"F134+H134","v":0},{"$f":"IF(D130+F130<>0,J134/(D130+F130),0)","v":0}]
[]
[null,null,"Situación incial",null,null,null,"Situación final"]
[null,"Energía Final","Térmica",null,"Eléctrica",null,"Térmica",null,"Eléctrica"]
[null,null,"MWht/año","tep/año","MWh/año","tep/año","MWht/año","tep/año","MWh/año","tep/año"]
[]
[]
[null,null,"Ahorro energía final:",null,"Térmica",null,"Eléctrica",null,null,"Total"]
[null,null,null,null,"MWht/año","tep/año","MWh/año","tep/año",null,"tep/año"]
[null,null,null,null,{"$f":"C139-G139","v":0},{"$f":"D139-H139","v":0},{"$f":"E139-I139","v":0},{"$f":"F139-J139","v":0},null,{"$f":"F143+H143","v":0}]
[]
[null,"Contribución a la disminución del impacto ambiental:",null,null,null,null,"Ahorro emisiones CO2  tCO2 eq/año"]
[null,null,null,null,null,null,"tCO2eq/año","% año"]
[]
[]
[null,"Relación de equipos y/o instalaciones consumidores objeto de renovación:  "]
[]
[null,"Descripción del equipo/instalación a sustituir",null,null,null,null,null,"Nº Serie",null,"Año fabricación","Potencia nominal (kW)"]
[]
[]
[null,"Descripción del equipo/instalación a adquirir",null,null,null,null,null,"Tecnología",null,null,"Potencia nominal (kW)"]
[]
[]
[null,"Descripción del equipo/instalación a sustituir",null,null,null,null,null,"Nº Serie",null,"Año fabricación","Potencia nominal (kW)"]
[]
[]
[null,"Descripción del equipo/instalación a adquirir",null,null,null,null,null,"Tecnología",null,null,"Potencia nominal (kW)"]
[]
[]
[null,"Descripción del equipo/instalación a sustituir",null,null,null,null,null,"Nº Serie",null,"Año fabricación","Potencia nominal (kW)"]
[]
[]
[null,"Descripción del equipo/instalación a adquirir",null,null,null,null,null,"Tecnología",null,null,"Potencia nominal (kW)"]
[]
[]
[null,"Descripción del equipo/instalación a sustituir",null,null,null,null,null,"Nº Serie",null,"Año fabricación","Potencia nominal (kW)"]
[]
[]
[null,"Descripción del equipo/instalación a adquirir",null,null,null,null,null,"Tecnología",null,null,"Potencia nominal (kW)"]
[]
[]
[null,"Descripción del equipo/instalación a sustituir",null,null,null,null,null,"Nº Serie",null,"Año fabricación","Potencia nominal (kW)"]
[]
[]
[null,"Descripción del equipo/instalación a adquirir",null,null,null,null,null,"Tecnología",null,null,"Potencia nominal (kW)"]
[]
[]
[null,"Descripción del equipo/instalación a sustituir",null,null,null,null,null,"Nº Serie",null,"Año fabricación","Potencia nominal (kW)"]
[]
[]
[null,"Descripción del equipo/instalación a adquirir",null,null,null,null,null,"Tecnología",null,null,"Potencia nominal (kW)"]
[]
[]
[null,"Descripción del equipo/instalación a sustituir",null,null,null,null,null,"Nº Serie",null,"Año fabricación","Potencia nominal (kW)"]
[]
[]
[null,"Descripción del equipo/instalación a adquirir",null,null,null,null,null,"Tecnología",null,null,"Potencia nominal (kW)"]
[]
[]
[null,"Descripción del equipo/instalación a sustituir",null,null,null,null,null,"Nº Serie",null,"Año fabricación","Potencia nominal (kW)"]
[]
[]
[null,"Descripción del equipo/instalación a adquirir",null,null,null,null,null,"Tecnología",null,null,"Potencia nominal (kW)"]
[]
[]
[null,"Descripción del equipo/instalación a sustituir",null,null,null,null,null,"Nº Serie",null,"Año fabricación","Potencia nominal (kW)"]
[]
[]
[null,"Descripción del equipo/instalación a adquirir",null,null,null,null,null,"Tecnología",null,null,"Potencia nominal (kW)"]
[]
[]
[null,"Descripción del equipo/instalación a sustituir",null,null,null,null,null,"Nº Serie",null,"Año fabricación","Potencia nominal (kW)"]
[]
[]
[null,"Descripción del equipo/instalación a adquirir",null,null,null,null,null,"Tecnología",null,null,"Potencia nominal (kW)"]
[]
[]
[]
[]
[null,"Presupuesto y coste elegible."]
[null,"Desglose exhaustivo de gastos previstos para la ejecución del proyecto de inversión, separando claramente las cantidades subvencionables atendiendo a lo dispuesto en el artículo 3 de la Orden de 28 de diciembre de 2015, reguladora de las bases, así como en el Anexo I de la convocatoria (costes elegibles)."]
[]
[]
[]
[null,"Concepto",null,null,null,null,null,"Presupuesto (€; sin IVA))",null,"Costes elegibles (€)"]
[null,"Honorarios de proyectos de ejecución y/o direcciones facultativas."]
[null,"Gastos de gestión y tramitación de autorizaciones, inscripciones o solicitudes de ayuda."]
[null,"Adquisición o arrendamiento de terrenos."]
[null,"Obra civil."]
[null,"Equipos e instalaciones."]
[null,"Montaje y conexión."]
[null,"Prevención de riesgos laborales"]
[null,"Sistemas de seguridad, vigilancia, protección, alarmas."]
[null,"Mantenimiento y/o reparación de equipos e instalaciones."]
[null,"Impuestos, tasas."]
[null,"Otros (detallar)."]
[]
[]
[]
[]
[]
[]
[]
[]
[]
[]
[]
[]
[]
[]
[]
[]
[]
[]
[]
[null,null,null,null,null,"Total:",null,{"$f":"SUM(H219:H248)","v":0},null,{"$f":"SUM(J219:J248)","v":0}]
[]
[null,null,null,null,null,null,null,"Coste elegible máximo:",null,{"$f":"MIN(J249,(10000*G52))","v":0}]
[]
[null,null,null,null,null,null,null,null,"Ratio coste elegible/ahorro energético previsto:",null,{"$f":"IF(G52<>0,J251/(G52),0)","v":0},"€/tep"]
[]
[]
[]
[]
[]
[]
[]
[]
[]
[]
[]
[]
[]
[]
[]
[null,null,null,null,null,null,null,null,null,null,20]
[null,null,null,null,null,null,null,null,{"$f":"IF(#REF!<=K269,2,IF(#REF!<=K270,3,IF(#REF!<=K271,4,IF(#REF!<=K272,5,IF(#REF!<=K273,6,IF(#REF!<=K274,7,8))))))","v":{"$error":"#REF!"}},null,50]
[null,null,null,null,null,null,null,null,{"$f":"IF(J148=0,\"\",INDIRECT(IF(J148=1,\"'Tabla de intensidades de ayuda'!D\",IF(J148=2,\"'Tabla de intensidades de ayuda'!C\",IF(J148=3,\"'Tabla de intensidades de ayuda'!B\"))) &I270))","v":""},null,100]
[null,null,null,null,"Ayuda solicitada:",null,null,null,null,"€",150]
[null,null,null,null,null,null,null,null,null,null,200]
[null,null,null,null,null,null,null,null,null,null,250]
[]
[]
[]
[]
[]
[]
[]
[]
[]
[]
[]
[]
[]
[]
[]
[]
[]
[]
[]
[]
[]
[]
[]
[]
[]
[]
[]
[]
[]
[]
[]
[]
[]
[]
[null,null,null,null,null,null,null,null,null,null,null,null,null,null,null,500]
[null,null,null,null,null,null,null,null,null,null,null,null,null,null,null,1000]
[null,null,null,null,null,null,null,null,null,null,null,null,null,null,null,2000]
[null,null,null,null,null,null,null,null,null,null,null,null,null,null,null,5000]
[null,null,null,null,null,null,null,null,null,null,null,null,null,null,null,7500]
[null,null,null,null,"Total:",{"$f":"SUM(F274:F313)","v":0},null,null,null,null,null,null,null,null,null,10000]
[null,null,null,null,null,null,null,null,null,null,null,null,null,null,{"$f":"IF(I316<=P309,2,IF(I316<=P310,3,IF(I316<=P311,4,IF(I316<=P312,5,IF(I316<=P313,6,7)))))","v":2}]
[null,null,null,null,"Ratio coste elegible/ahorro de energía final (€/tep):",null,null,null,{"$f":"IF(J143<>0,I274/J143,0)","v":0}]
[]
[null,null,null,null,"Ayuda que solicita:",null,null,null,null,"€"]
[]
[null,"Plan de Inversiones:"]
[]
[null,"Área",null,null,"Descripción de la medida",null,null,null,null,null,"Inversión aproximada €"]
[null,"Financiación:"]
[null,"Mejora de la estructura financiera"]
[]
[]
[]
[]
[]
[]
[]
[]
[]
[null,"Formación:"]
[null,"Captación de RRHH"]
[]
[]
[]
[]
[]
[]
[]
[]
[]
[null,"Internacionalización:"]
[null,"Acceso a nuevos mercados"]
[]
[]
[]
[]
[]
[]
[]
[]
[]
[null,"Proyectos de expansión"]
[]
[]
[]
[]
[]
[]
[]
[]
[]
[null,"Innovación tecnológica:"]
[null,"Nuevos productos"]
[]
[]
[]
[]
[]
[]
[]
[]
[]
[null,"Mejora de procesos"]
[]
[]
[]
[]
[]
[]
[]
[]
[]
[null,"Innovación no tecnológica:"]
[null,"Mejora en diseño"]
[]
[]
[]
[]
[]
[]
[]
[]
[]
[null,"Mejora en la gestión"]
[]
[]
[]
[]
[]
[]
[]
[]
[]
[null,"Mejora en la comercialización"]
[]
[]
[]
[]
[]
[]
[]
[]
[]
[null,"Mejora en logística"]
[]
[]
[]
[]
[]
[]
[]
[]
[]
[null,"Energía:"]
[null,"Mejora en eficiencia energética"]
[]
[]
[]
[]
[]
[]
[]
[]
[]
[null,"Energías renovables y autoconsumo"]
[]
[]
[]
[]
[]
[]
[]
[]
[]
[null,"Economía circular:"]
[null,"Reducción de residuos"]
[]
[]
[]
[]
[]
[]
[]
[]
[]
[null,"Reutilización"]
[]
[]
[]
[]
[]
[]
[]
[]
[]
[null,"Valorización subproducto"]
[]
[]
[]
[]
[]
[]
[]
[]
[]
[null,"Otros"]
[null,"Reducción de residuos"]
[]
[]
[]
[]
[]
[]
[]
[]
[]
[]
[]
[]
[]
[]
[]
[]
[null,"Previsión de ahorro energético anual: ",null,null,"% Ahorro E. Primaria"]
[null,null,null,null,{"$f":"IF(K134>0.15,'(4) Ahorro energético'!A4,IF(K134>0.1,'(4) Ahorro energético'!A3,IF(K134>0.05,'(4) Ahorro energético'!A2,'(4) Ahorro energético'!A5)))","v":"<= 5%"}]
[]
[]
[null,"¿Invierte en tecnología de muy alta eficiencia, o en la mejor tecnología disponible (realizar breve exposición):"]
[]
[]
[]
[]
[]
[]
[]
[]
[]
[]
[]
[]
[]
[]
[]
[null,"Contribución potencial a la disminución del impacto ambiental: ",null,null,null,null,"% Ahorro"]
[null,null,null,null,null,null,{"$f":"IF(H147>15,'(2) Impacto ambiental'!A4,IF(H147>10,'(2) Impacto ambiental'!A3,IF(H147>5,'(2) Impacto ambiental'!A2,'(2) Impacto ambiental'!A5)))","v":"<= 5%"}]
[]
[null,"Replicabilidad y efecto demostrativo:",null,null,"Seleccionar Actividad"]
[]
[null,"Generación de actividad económica y/o empleo local:"]
[]
[null,"Número de puestos de trabajo directos e indirectos derivados de la ejecución de la actuación (justificar):",null,null,null,null,null,null,null,null,null,"puestos"]

{"sheet":"Tabla intensidades de ayuda","index":1,"n_rows":7,"n_cols":4,"rows_kept":7,"cut":false,"hidden":true,"merged":[]}
["Ratio (€/tep final)","Gran Empresa","Mediana Empresa","Pequeña Empresa"]
["R<=500",0.5,0.6,0.7]
["500<R<=1000",0.45,0.5,0.6]
["1000<R<=2000",0.4,0.45,0.5]
["2000<R<=5000",0.3,0.35,0.4]
["5000<R<=7500",0.2,0.25,0.3]
["7500<R<=10000",0.15,0.2,0.25]

{"sheet":"EVALUACION","index":2,"n_rows":9,"n_cols":10,"rows_kept":9,"cut":false,"hidden":true,"merged":[[2,0,2,1],[0,0,1,10]]}
["VALORACIÓN DE LA SOLICITUD"]
[]
["Código de colores",null,"PLAN  DE INVERSIONES Y ADECUACIÓN A AUDITORÍA PREVIA","ADECUACIÓN A SUBSECTORES PRIORITARIOS","AHORRO ENERGÉTICO ANUAL A IGUALDAD RITMO PRODUCTIVO","GRADO DE INNOVACIÓN","CONTRIBUCIÓN DISMINUCIÓN IMPACTO AMBIENTAL","REPLICABILIDAD Y EFECTO DEMOSTRATIVO","GEN. ACTIVIDAD ECONÓMICA / EMPLEO LOCAL","CALIDAD Y RIGOR ELABORACIÓN DOCUMENTACIÓN T."]
[null,"Valoración por técnico","A","B","C","D","E","F","G","H"]
[null,"Valoración automática",null,0,0,null,0,{"$f":"H8+H10","v":1}]
[]
[null,null,null,null,null,null,null,"REPLICABILIDAD",null,"VALORACIÓN TOTAL"]
[null,"Total",null,null,null,null,null,1,null,{"$f":"C5+D5+E5+F5+G5+H5+I5+J5","v":1}]
[null,null,null,null,null,null,null,"EFECTO DEMOSTRATIVO"]

{"sheet":"(1) Subsectores prioritarios","index":3,"n_rows":18,"n_cols":10,"rows_kept":18,"cut":false,"hidden":true,"merged":[]}
["Actividades de MUY ALTO CONSUMO ENERGÉTICO (15 puntos)",null,null,null,null,null,null,"Tipo Actividad","Actividad","Puntos"]
[null," -Fabricación de materiales de construcción",null,null,null,null,null,"MUY ALTO CONSUMO ENERGÉTICO ","Fabricación de materiales de construcción",15]
[null," -Industria química y petroquímica",null,null,null,null,null,null,"Industria química y petroquímica",15]
[null," -Siderurgia y metalurgia",null,null,null,null,null,null,"Siderurgia y metalurgia",15]
[null," -Tratamiento y revestimiento de metales",null,null,null,null,null,null,"Tratamiento y revestimiento de metales",15]
[null," -Papel y artes gráficas",null,null,null,null,null,null,"Papel y artes gráficas",15]
[null," -Similares",null,null,null,null,null,null,"Similares a consumo energético muy alto",15]
[null,null,null,null,null,null,null,"ALTO CONSUMO ENERGÉTICO","Industria de Alimentación, bebidas y tabaco",10]
["Actividades de ALTO CONSUMO ENERGÉTICO (10 puntos)",null,null,null,null,null,null,null,"Logística, frigorífica y congelación",10]
[null," -Industria de Alimentación, bebidas y tabaco",null,null,null,null,null,null,"Industria del plástico, caucho, madera y corcho.",10]
[null," -Logística, frigorífica y congelación",null,null,null,null,null,null,"Similares consumo energético alto",10]
[null," -Industria del plástico, caucho, madera y corcho.",null,null,null,null,null,"CONSUMO ENERGÉTICO MEDIO","Industrias extractivas y manufactureras en general",5]
[null," -Similares",null,null,null,null,null,null,"Grandes superficies comerciales",5]
[null,null,null,null,null,null,null,null,"Similares a consumo energético medio",5]
["Actividades de CONSUMO ENERGÉTICO MEDIO (5 puntos)"]
[null," -Industrias extractivas y manufactureras en general"]
[null," -Grandes superficies comerciales"]
[null," -Similares"]

{"sheet":"(2) Impacto ambiental","index":4,"n_rows":5,"n_cols":2,"rows_kept":5,"cut":false,"hidden":true,"merged":[]}
["DISMINUCIÓN RELATIVA DE EMISIONES EQUIVALENTES DE CO2","PUNTOS"]
["Mayor 5%",5]
["Mayor 10%",10]
["Mayor 15%",15]
["<= 5%"]

{"sheet":"(3) Replicabilidad","index":5,"n_rows":266,"n_cols":6,"rows_kept":266,"cut":false,"hidden":true,"merged":[[0,0,1,3]]}
["Actividad CNAE 2009"]
[]
["Seleccionar la actividad desarrollada en el establecimiento donde se realiza la actuación."]
[]
[]
[""]
[]
["CNAE  Actividad",null,"ORDEN",0,null,8]
["    563 Establecimientos de bebidas",5055,1]
["    412 Construcción de edificios",4280,2]
["    477 Comercio al por menor de otros artículos en establecimientos especializados",4257,3]
["    960 Otros servicios personales",3939,4]
["    494 Transporte de mercancías por carretera y servicios de mudanza",3372,5]
["    472 Comercio al por menor de productos alimenticios, bebidas y tabaco en establecimientos especializados",2671,6]
["    411 Promoción inmobiliaria",2607,7]
["    691 Actividades jurídicas",2551,8]
["    682 Alquiler de bienes inmobiliarios por cuenta propia",2535,9]
["    475 Comercio al por menor de otros artículos de uso doméstico en establecimientos especializados",2477,10]
["    432 Instalaciones eléctricas, de fontanería y otras instalaciones en obras de construcción",2406,11]
["    463 Comercio al por mayor de productos alimenticios, bebidas y tabaco",2256,12]
["    461 Intermediarios del comercio",2253,13]
["    711 Servicios técnicos de arquitectura e ingeniería y otras actividades relacionadas con el asesoramiento técnico",2207,14]
["    692 Actividades de contabilidad, teneduría de libros, auditoría y asesoría fiscal",2003,15]
["    478 Comercio al por menor en puestos de venta y en mercadillos",1985,16]
["    862 Actividades médicas y odontológicas",1956,17]
["    855 Otra educación",1924,18]
["    829 Actividades de apoyo a las empresas n.c.o.p.",1903,19]
["    662 Actividades auxiliares a seguros y fondos de pensiones",1882,20]
["    869 Otras actividades sanitarias",1833,21]
["    433 Acabado de edificios",1813,22]
["    452 Mantenimiento y reparación de vehículos de motor",1633,23]
["    561 Restaurantes y puestos de comidas",1557,24]
["    471 Comercio al por menor en establecimientos no especializados",1410,25]
["    683 Actividades inmobiliarias por cuenta de terceros",1327,26]
["    467 Otro comercio al por mayor especializado",1218,27]
["    949 Otras actividades asociativas",1051,28]
["    464 Comercio al por mayor de artículos de uso doméstico",1035,29]
["    812 Actividades de limpieza",934,30]
["    476 Comercio al por menor de artículos culturales y recreativos en establecimientos especializados",917,31]
["    493 Otro transporte terrestre de pasajeros",830,32]
["    310 Fabricación de muebles",785,33]
["    931 Actividades deportivas",759,34]
["    731 Publicidad",669,35]
["    466 Comercio al por mayor de otra maquinaria, equipos y suministros",660,36]
["    251 Fabricación de elementos metálicos para la construcción",593,37]
["    620 Programación, consultoría y otras actividades relacionadas con la informática",578,38]
["    952 Reparación de efectos personales y artículos de uso doméstico",577,39]
["    773 Alquiler de otra maquinaria, equipos y bienes tangibles",560,40]
["    900 Actividades de creación, artísticas y espectáculos",552,41]
["    522 Actividades anexas al transporte",516,42]
["    451 Venta de vehículos de motor",496,43]
["    351 Producción, transporte y distribución de energía eléctrica",480,44]
["    562 Provisión de comidas preparadas para eventos y otros servicios de comidas",477,45]
["    749 Otras actividades profesionales, científicas y técnicas n.c.o.p.",457,46]
["    439 Otras actividades de construcción especializada",409,47]
["    431 Demolición y preparación de terrenos",399,48]
["    107 Fabricación de productos de panadería y pastas alimenticias",393,49]
["    331 Reparación de productos metálicos, maquinaria y equipo",387,50]
["    462 Comercio al por mayor de materias primas agrarias y de animales vivos",383,51]
["    474 Comercio al por menor de equipos para las tecnologías de la información y las comunicaciones en establecimientos especializados",379,52]
["    853 Educación secundaria",377,53]
["    932 Actividades recreativas y de entretenimiento",366,54]
["    712 Ensayos y análisis técnicos",363,55]
["    702 Actividades de consultoría de gestión empresarial",361,56]
["    742 Actividades de fotografía",356,57]
["    920 Actividades de juegos de azar y apuestas",352,58]
["    813 Actividades de jardinería",350,59]
["    453 Comercio de repuestos y accesorios de vehículos de motor",345,60]
["    181 Artes gráficas y servicios relacionados con las mismas",331,61]
["    429 Construcción de otros proyectos de ingeniería civil",304,62]
["    750 Actividades veterinarias",290,63]
["    951 Reparación de ordenadores y equipos de comunicación",290,64]
["    162 Fabricación de productos de madera, corcho, cestería y espartería",279,65]
["    532 Otras actividades postales y de correos",276,66]
["    479 Comercio al por menor no realizado ni en establecimientos, ni en puestos de venta ni en mercadillos",261,67]
["    473 Comercio al por menor de combustible para la automoción en establecimientos especializados",253,68]
["    469 Comercio al por mayor no especializado",247,69]
["    821 Actividades administrativas y auxiliares de oficina",241,70]
["    360 Captación, depuración y distribución de agua",225,71]
["    851 Educación preprimaria",224,72]
["    141 Confección de prendas de vestir, excepto de peletería",204,73]
["    791 Actividades de agencias de viajes y operadores turísticos",186,74]
["    771 Alquiler de vehículos de motor",174,75]
["    139 Fabricación de otros productos textiles",162,76]
["    103 Procesado y conservación de frutas y hortalizas",160,77]
["    237 Corte, tallado y acabado de la piedra",160,78]
["    108 Fabricación de otros productos alimenticios",156,79]
["    152 Fabricación de calzado",154,80]
["    454 Venta, mantenimiento y reparación de motocicletas y de sus repuestos y accesorios",153,81]
["    222 Fabricación de productos de plástico",152,82]
["    256 Tratamiento y revestimiento de metales; ingeniería mecánica por cuenta de terceros",151,83]
["    551 Hoteles y alojamientos similares",151,84]
["    941 Actividades de organizaciones empresariales, profesionales y patronales",151,85]
["    325 Fabricación de instrumentos y suministros médicos y odontológicos",146,86]
["    721 Investigación y desarrollo experimental en ciencias naturales y técnicas",133,87]
["    552 Alojamientos turísticos y otros alojamientos de corta estancia",124,88]
["    743 Actividades de traducción e interpretación",118,89]
["    465 Comercio al por mayor de equipos para las tecnologías de la información y las comunicaciones",117,90]
["    289 Fabricación de otra maquinaria para usos específicos",115,91]
["    236 Fabricación de elementos de hormigón, cemento y yeso",109,92]
["    101 Procesado y conservación de carne y elaboración de productos cárnicos",108,93]
["    110 Fabricación de bebidas",108,94]
["    619 Otras actividades de telecomunicaciones",104,95]
["    631 Proceso de datos, hosting y actividades relacionadas; portales web",104,96]
["    854 Educación postsecundaria",102,97]
["    852 Educación primaria",99,98]
["    581 Edición de libros, periódicos y otras actividades editoriales",98,99]
["    661 Actividades auxiliares a los servicios financieros, excepto seguros y fondos de pensiones",88,100]
["    259 Fabricación de otros productos metálicos",86,101]
["    081 Extracción de piedra, arena y arcilla",85,102]
["    910 Actividades de bibliotecas, archivos, museos y otras actividades culturales",85,103]
["    772 Alquiler de efectos personales y artículos de uso doméstico",83,104]
["    591 Actividades cinematográficas, de vídeo y de programas de televisión",80,105]
["    823 Organización de convenciones y ferias de muestras",80,106]
["    381 Recogida de residuos",79,107]
["    801 Actividades de seguridad privada",79,108]
["    881 Actividades de servicios sociales sin alojamiento para personas mayores y con discapacidad",73,109]
["    722 Investigación y desarrollo experimental en ciencias sociales y humanidades",70,110]
["    204 Fabricación de jabones, detergentes y otros artículos de limpieza y abrillantamiento; fabricación de perfumes y cosméticos",69,111]
["    257 Fabricación de artículos de cuchillería y cubertería, herramientas y ferretería",65,112]
["    282 Fabricación de otra maquinaria de uso general",63,113]
["    701 Actividades de las sedes centrales",62,114]
["    172 Fabricación de artículos de papel y de cartón",56,115]
["    611 Telecomunicaciones por cable",56,116]
["    329 Industrias manufactureras n.c.o.p.",52,117]
["    873 Asistencia en establecimientos residenciales para personas mayores y con discapacidad física",51,118]
["    782 Actividades de las empresas de trabajo temporal",49,119]
["    105 Fabricación de productos lácteos",47,120]
["    283 Fabricación de maquinaria agraria y forestal",46,121]
["    601 Actividades de radiodifusión",45,122]
["    781 Actividades de las agencias de colocación",44,123]
["    741 Actividades de diseño especializado",43,124]
["    811 Servicios integrales a edificios e instalaciones",43,125]
["    201 Fabricación de productos químicos básicos, compuestos nitrogenados, fertilizantes, plásticos y caucho sintético en formas primarias",41,126]
["    205 Fabricación de otros productos químicos",40,127]
["    255 Forja, estampación y embutición de metales; metalurgia de polvos",40,128]
["    421 Construcción de carreteras y vías férreas, puentes y túneles",40,129]
["    889 Otros actividades de servicios sociales sin alojamiento",40,130]
["    732 Estudios de mercado y realización de encuestas de opinión pública",39,131]
["    292 Fabricación de carrocerías para vehículos de motor; fabricación de remolques y semirremolques",38,132]
["    422 Construcción de redes",38,133]
["    521 Depósito y almacenamiento",38,134]
["    582 Edición de programas informáticos",37,135]
["    321 Fabricación de artículos de joyería, bisutería y similares",36,136]
["    151 Preparación, curtido y acabado del cuero; fabricación de artículos de marroquinería, viaje y de guarnicionería y talabartería; preparación y teñido de pieles",34,137]
["    109 Fabricación de productos para la alimentación animal",33,138]
["    234 Fabricación de otros productos cerámicos",33,139]
["    104 Fabricación de aceites y grasas vegetales y animales",32,140]
["    231 Fabricación de vidrio y productos de vidrio",32,141]
["    602 Actividades de programación y emisión de televisión",32,142]
["    861 Actividades hospitalarias",28,143]
["    612 Telecomunicaciones inalámbricas",27,144]
["    553 Campings y aparcamientos para caravanas",26,145]
["    803 Actividades de investigación",26,146]
["    856 Actividades auxiliares a la educación",25,147]
["    370 Recogida y tratamiento de aguas residuales",24,148]
["    681 Compraventa de bienes inmobiliarios por cuenta propia",23,149]
["    221 Fabricación de productos de caucho",22,150]
["    161 Aserrado y cepillado de la madera",21,151]
["    203 Fabricación de pinturas, barnices y revestimientos similares; tintas de imprenta y masillas",21,152]
["    799 Otros servicios de reservas y actividades relacionadas con los mismos",21,153]
["    642 Actividades de las sociedades holding",20,154]
["    102 Procesado y conservación de pescados, crustáceos y moluscos",19,155]
["    382 Tratamiento y eliminación de residuos",19,156]
["    233 Fabricación de productos cerámicos para la construcción",17,157]
["    274 Fabricación de lámparas y aparatos eléctricos de iluminación",17,158]
["    293 Fabricación de componentes, piezas y accesorios para vehículos de motor",17,159]
["    271 Fabricación de motores, generadores y transformadores eléctricos, y de aparatos de distribución y control eléctrico",16,160]
["    284 Fabricación de máquinas herramienta para trabajar el metal y otras máquinas herramienta",16,161]
["    301 Construcción naval",16,162]
["    332 Instalación de máquinas y equipos industriales",16,163]
["    252 Fabricación de cisternas, grandes depósitos y contenedores de metal",15,164]
["    281 Fabricación de maquinaria de uso general",15,165]
["    324 Fabricación de juegos y juguetes",15,166]
["    639 Otros servicios de información",15,167]
["    262 Fabricación de ordenadores y equipos periféricos",14,168]
["    390 Actividades de descontaminación y otros servicios de gestión de residuos",14,169]
["    649 Otros servicios financieros, excepto seguros y fondos de pensiones",14,170]
["    651 Seguros",14,171]
["    131 Preparación e hilado de fibras textiles",13,172]
["    182 Reproducción de soportes grabados",13,173]
["    261 Fabricación de componentes electrónicos y circuitos impresos ensamblados",13,174]
["    245 Fundición de metales",12,175]
["    265 Fabricación de instrumentos y aparatos de medida, verificación y navegación; fabricación de relojes",12,176]
["    501 Transporte marítimo de pasajeros",12,177]
["    133 Acabado de textiles",11,178]
["    383 Valorización",11,179]
["    106 Fabricación de productos de molinería, almidones y productos amiláceos",10,180]
["    242 Fabricación de tubos, tuberías, perfiles huecos y sus accesorios, de acero",10,181]
["    243 Fabricación de otros productos de primera transformación del acero",10,182]
["    323 Fabricación de artículos de deporte",10,183]
["    353 Suministro de vapor y aire acondicionado",10,184]
["    643 Inversión colectiva, fondos y entidades financieras similares",10,185]
["    171 Fabricación de pasta papelera, papel y cartón",9,186]
["    783 Otra provisión de recursos humanos",9,187]
["    802 Servicios de sistemas de seguridad",9,188]
["    275 Fabricación de aparatos domésticos",8,189]
["    613 Telecomunicaciones por satélite",8,190]
["    871 Asistencia en establecimientos residenciales con cuidados sanitarios",8,191]
["    942 Actividades sindicales",8,192]
["    244 Producción de metales preciosos y de otros metales no férreos",7,193]
["    309 Fabricación de material de transporte n.c.o.p.",7,194]
["    241 Fabricación de productos básicos de hierro, acero y ferroaleaciones",6,195]
["    279 Fabricación de otro material y equipo eléctrico",6,196]
["    559 Otros alojamientos",6,197]
["    653 Fondos de pensiones",6,198]
["    822 Actividades de los centros de llamadas",6,199]
["    132 Fabricación de tejidos textiles ",5,200]
["    202 Fabricación de pesticidas y otros productos agroquímicos",5,201]
["    239 Fabricación de productos abrasivos y productos minerales no metálicos n.c.o.p.",5,202]
["    872 Asistencia en establecimientos residenciales para personas con discapacidad intelectual, enfermedad mental y drogodependencia",5,203]
["    089 Industrias extractivas n.c.o.p.",4,204]
["    143 Confección de prendas de vestir de punto",4,205]
["    211 Fabricación de productos farmacéuticos de base",4,206]
["    266 Fabricación de equipos de radiación, electromédicos y electroterapéuticos",4,207]
["    641 Intermediación monetaria",4,208]
["    774 Arrendamiento de la propiedad intelectual y productos similares, excepto trabajos protegidos por los derechos de autor",4,209]
["    206 Fabricación de fibras artificiales y sintéticas",3,210]
["    235 Fabricación de cemento, cal y yeso",3,211]
["    322 Fabricación de instrumentos musicales",3,212]
["    502 Transporte marítimo de mercancías",3,213]
["    071 Extracción de minerales de hierro",2,214]
["    212 Fabricación de especialidades farmacéuticas",2,215]
["    253 Fabricación de generadores de vapor, excepto calderas de calefacción central",2,216]
["    267 Fabricación de instrumentos de óptica y equipo fotográfico",2,217]
["    273 Fabricación de cables y dispositivos de cableado",2,218]
["    291 Fabricación de vehículos de motor",2,219]
["    352 Producción de gas; distribución por tubería de combustibles gaseosos",2,220]
["    511 Transporte aéreo de pasajeros",2,221]
["    592 Actividades de grabación de sonido y edición musical",2,222]
["    879 Otras actividades de asistencia en establecimientos residenciales",2,223]
["    091 Actividades de apoyo a la extracción de petróleo y gas natural",1,224]
["    099 Actividades de apoyo a otras industrias extractivas",1,225]
["    120 Industria del tabaco",1,226]
["    263 Fabricación de equipos de telecomunicaciones",1,227]
["    272 Fabricación de pilas y acumuladores eléctricos",1,228]
["    495 Transporte por tubería",1,229]
["    663 Actividades de gestión de fondos",1,230]
["    051 Extracción de antracita y hulla",0,231]
["    052 Extracción de lignito",0,232]
["    061 Extracción de crudo de petróleo",0,233]
["    062 Extracción de gas natural",0,234]
["    072 Extracción de minerales metálicos no férreos",0,235]
["    142 Fabricación de artículos de peletería",0,236]
["    191 Coquerías",0,237]
["    192 Refino de petróleo",0,238]
["    232 Fabricación de productos cerámicos refractarios",0,239]
["    254 Fabricación de armas y municiones",0,240]
["    264 Fabricación de productos electrónicos de consumo",0,241]
["    268 Fabricación de soportes magnéticos y ópticos",0,242]
["    302 Fabricación de locomotoras y material ferroviario",0,243]
["    303 Construcción aeronáutica y espacial y su maquinaria",0,244]
["    304 Fabricación de vehículos militares de combate",0,245]
["    491 Transporte interurbano de pasajeros por ferrocarril",0,246]
["    492 Transporte de mercancías por ferrocarril",0,247]
["    503 Transporte de pasajeros por vías navegables interiores",0,248]
["    504 Transporte de mercancías por vías navegables interiores",0,249]
["    512 Transporte aéreo de mercancías y transporte espacial",0,250]
["    531 Actividades postales sometidas a la obligación del servicio universal",0,251]
["    652 Reaseguros",0,252]
["TOTAL",{"$f":"SUM(B9:B260)","v":93574}]
[]
["Notas:"]
[]
["Fuente: "]
["Instituto Nacional de Estadística"]

{"sheet":"(4) Ahorro energético","index":6,"n_rows":5,"n_cols":2,"rows_kept":5,"cut":false,"hidden":true,"merged":[]}
["PREVISIÓN DE AHORRO RELATIVO DE ENERGÍA PRIMARIA","PUNTOS"]
["Mayor 5%",10]
["Mayor 10%",15]
["Mayor 15%",20]
["<= 5%"]